Cogmind - Beta 14 @@@ ROGUE MODE // 2025.01.19 @ 09:27:26 Player: Xight Result: Destroyed by Y-45 Defender with Heavy Assault Rifle Performance ------------- Evolutions (1) 500 Regions Visited (3) 600 Robots Destroyed (66) 330 Value Destroyed (1174) 1174 Prototype IDs (3) 60 Alien Tech Used (0) 0 Bonus (0) 0 TOTAL SCORE: 2664 Bonus ------- None Cogmind --------- Core Integrity 0/400 Matter 266/300 Energy 261/265 System Corruption 11% Temperature Cool (29) Movement Treading (160) Location -9/Materials Parts ------- > --- POWER (1) -------- Improved Ion Engine > --- PROPULSION (2) --- Light Treads Light Treads > --- UTILITY (2) ------ Improved Signal Interpreter Improved Terrain Scan Processor > --- WEAPON (4) ------- EM Pulse Gun > --- INVENTORY (5) ---- Aluminum Leg Small Storage Unit Sensor Array Peak State ------------ > --- POWER ------------ Ion Engine > --- PROPULSION ------- Aluminum Leg Aluminum Leg > --- UTILITY ---------- Improved Signal Interpreter Improved Terrain Scan Processor > --- WEAPON ----------- Improved EM Shotgun Particle Gun Advanced Beam Cannon Improved Assault Rifle > --- INVENTORY -------- Aluminum Leg Small Storage Unit Sensor Array EM Pulse Gun [Rating: 20] Favorites ----------- Power Improved Ion Engine Engine Improved Ion Engine Propulsion Aluminum Leg Treads Light Treads Leg Aluminum Leg Wheel Wheel Hover Unit Hover Unit Utility Sensor Array Device Sensor Array Storage Small Storage Unit Processor Improved Terrain Scan Processor Protection Light Armor Plating Weapon Autogun Energy Gun Heavy EM Pulse Gun Energy Cannon Light EM Pulse Cannon Ballistic Gun Autogun Build | -11 -10 -10 -9 ------- Run | Yrd Mat Min Mat Slots Evolved 2 | . . . 2 Power . | . . . . Propulsion . | . . . . Utility . | . . . . Weapon 2 | . . . 2 Parts Attached 62 | 8 18 3 33 Power 6 | 1 1 1 3 Engine 6 | 1 1 1 3 Core . | . . . . Reactor . | . . . . Propulsion 24 | 2 7 . 15 Treads 5 | . . . 5 Leg 13 | 2 1 . 10 Wheel 4 | . 4 . . Hover 2 | . 2 . . Flight . | . . . . Utility 10 | 2 3 2 3 Device 3 | 1 . 1 1 Storage 3 | 1 2 . . Processor 3 | . . 1 2 Hackware . | . . . . Protection 1 | . 1 . . Artifact . | . . . . Weapon 22 | 3 7 . 12 Energy Gun 11 | 2 2 . 7 Energy Cannon 3 | . . . 3 Ballistic Gun 8 | 1 5 . 2 Ballistic Cannon . | . . . . Launcher . | . . . . Special Weapon . | . . . . Impact Weapon . | . . . . Slashing Weapon . | . . . . Piercing Weapon . | . . . . Special Melee Weapon . | . . . . Unidentified Prototypes 3 | . . . 3 Corrupted Parts 1 | . . . 1 System Corruption 10 | . . . 10 Parts Lost 9 | . 2 . 7 Power 2 | . . . 2 Propulsion 2 | . 1 . 1 Utility 1 | . 1 . . Weapon 4 | . . . 4 Highest Loss Streak 6 | . 2 . 6 To Critical Strikes . | . . . . Average Slot Usage (%) 91 | . 79 82 94 Engine 10 | . 13 14 9 Treads 5 | . . . 7 Leg 10 | . 9 . 11 Wheel 1 | . 6 . . Hover 2 | . 3 28 . Device 7 | . . 5 9 Storage 2 | . 12 . . Processor 9 | . . 5 12 Energy Gun 11 | . 9 . 12 Energy Cannon 3 | . . . 4 Ballistic Gun 24 | . 18 28 26 Peak Build Rating 20 | 9 9 10 20 Average Rating 12 | 7 6 8 15 On Entrance 6 | . 9 7 10 Naked Turns 1 | . 1 . . Heaviest Build 21 | 14 19 12 21 Greatest Support 40 | 20 20 12 40 Greatest Overweight (x) 6 | 1 3 . 6 Average Overweight (x) . | . . . . Largest Inventory Capacity 8 | 8 8 5 5 Average Capacity 5 | 7 7 5 5 Most Carried 8 | 3 8 5 5 Average Carried 4 | 2 5 5 4 Final Capacity 8 | 8 8 5 5 Final Carried 5 | 3 5 5 3 Class Distribution -------------------- 59% | Scavenger-Skirmisher 30% | Mutant 8% | Gunner Dominant Class ---------------- Mutant | -10/Materials Mutant | -10/Mines Scavenger-Skirmisher | -9/Materials Resources | -11 -10 -10 -9 ----------- Run | Yrd Mat Min Mat Matter Collected 1932 | 291 496 203 942 Remotely . | . . . . Salvage Created 2284 | 221 508 204 1351 Parts 165 | 26 41 13 85 Haulers Intercepted 2 | . . . 2 Recyclers Shooed 5 | . 1 2 2 Parts Field Recycled . | . . . . Retrieved Matter . | . . . . Parts Self-Destructed . | . . . . Prevented . | . . . . Kills | -11 -10 -10 -9 ------- Run | Yrd Mat Min Mat Combat Hostiles Destroyed 29 | . 7 . 22 Guns 22 | . 4 . 18 Cannons 1 | . . . 1 AOE 6 | . 3 . 3 Classes Destroyed 10 | 3 4 . 3 Worker 11 | 2 5 1 3 Builder 5 | . 2 2 1 Tunneler 6 | 5 1 . . Hauler 2 | . . . 2 Recycler 8 | 1 2 2 3 Operator 1 | . . . 1 Watcher 4 | . 1 . 3 Swarmer 8 | . 3 . 5 Grunt 17 | . 4 . 13 Sentry 4 | . . . 4 Best Kill Streak 5 | 5 5 3 4 Combat Bots Only 3 | . 3 . 3 Max Kills in Single Turn 3 | 2 3 1 2 Gunslinging . | . . . . Exploded 3 | . 3 . 1 Melee . | . . . . Uniques/NPCs Destroyed . | . . . . Combat | -11 -10 -10 -9 -------- Run | Yrd Mat Min Mat Hostile Shots Fired 166 | . 32 . 134 Missed 40 | . 7 . 33 Damage Taken 1922 | . 538 . 1384 Core 503 | . 103 . 400 Absorbed by Shields . | . . . . Core Remaining (%) 79 | 100 . 58 . Volleys Fired 178 | 11 62 13 92 Largest 4 | 2 2 2 4 Hottest 201 | 60 63 46 201 Shots Fired 422 | 22 123 26 251 Gun 398 | 22 123 26 227 Cannon 24 | . . . 24 Launcher . | . . . . Special . | . . . . Kinetic 270 | 11 94 26 139 Thermal 44 | . . . 44 Explosive . | . . . . Electromagnetic 108 | 11 29 . 68 Robot Hit Streak 8 | 7 8 6 8 Robot Miss Streak 6 | 1 3 4 6 Penetration Max . | . . . . Secondary Targets 1 | . 1 . . Max Gunslinging Chain 1 | . 1 . . Shots Hit Robots 194 | 13 54 18 109 Core Hits 104 | 10 24 6 64 Critical Kills . | . . . . Critical Parts Destroyed . | . . . . Critical Strikes 1 | . . . 1 Corrupt 1 | . . . 1 Melee Attacks . | . . . . Impact . | . . . . Slashing . | . . . . Piercing . | . . . . Sneak Attacks . | . . . . Combat Hostiles . | . . . . Follow-up Attacks . | . . . . Damage Inflicted 3323 | 180 976 271 1896 Guns 2711 | 155 765 271 1520 Cannons 220 | . . . 220 Explosions 380 | 25 202 . 153 Melee . | . . . . Ramming 12 | . 9 . 3 Kinetic 1830 | 39 625 271 895 Thermal 632 | 25 202 . 405 Explosive . | . . . . Electromagnetic 849 | 116 140 . 593 Impact . | . . . . Slashing . | . . . . Piercing . | . . . . Highest Corruption 11 | . 1 1 11 Average Corruption 9 | . 1 1 10 Corruption Purged . | . . . . Corruption Blocked . | . . . . Effects 79 | . 3 2 74 Message Errors 12 | . 1 . 11 Matter Fused 20 | . . . 20 Heat Flow Errors 11 | . 1 . 10 Energy Discharges 10 | . . 1 9 Parts Rejected 1 | . . . 1 Parts Fused 1 | . . . 1 Data Loss (minor) 6 | . . 1 5 Data Loss (major) 8 | . 1 . 7 Misfires 6 | . . . 6 Alerts 1 | . . . 1 Misdirections 1 | . . . 1 Weapon Failures 2 | . . . 2 Overload Shots . | . . . . Overflow Damage 30 | . 30 . . Projectiles . | . . . . Explosions 30 | . 30 . . Melee . | . . . . Knockbacks . | . . . . Impact . | . . . . Kinetic . | . . . . Secondary . | . . . . Self-Inflicted Damage 329 | . 232 . 97 Shots 6 | . 3 . 3 Rammed . | . . . . Targets Rammed 1 | . . . 1 Kicked 1 | . . . 1 Crushed . | . . . . Highest Temperature 665 | 40 277 20 665 Average Temperature 117 | 23 47 8 159 Received Heat Transfer 522 | . 135 . 387 Effects 31 | . . . 31 Shutdowns 4 | . . . 4 Energy Bleed 1 | . . . 1 Interference 5 | . . . 5 Matter Decay 2 | . . . 2 Short Circuit 2 | . . . 2 Damage (minor) 5 | . . . 5 Damage (major) 10 | . . . 10 Damage (core) 2 | . . . 2 Siege Activations . | . . . . Robots Corrupted 2 | . 1 . 1 Combat Hostiles . | . . . . Parts Fried 3 | . 1 . 2 Impact Corruptions . | . . . . Robots Melted . | . . . . Combat Hostiles . | . . . . Parts Melted . | . . . . Heat Transferred 673 | . 100 . 573 Parts Sabotaged . | . . . . Parts Stolen . | . . . . Parts Stripped . | . . . . Power Chain Reactions 6 | 1 1 . 4 Alert | -11 -10 -10 -9 ------- Run | Yrd Mat Min Mat Peak Influence 329 | 40 204 51 329 Initial 26 | . 26 26 19 Average 79 | 21 98 33 80 Maximum Alert Level 1 | . 1 . 1 Low Security (%) 95 | 100 99 100 94 Level 1 4 | . . . 5 Level 2 . | . . . . Level 3 . | . . . . Level 4 . | . . . . Level 5 . | . . . . High Security . | . . . . Max Security . | . . . . Squads Dispatched 6 | . 1 . 5 Investigation 3 | . 1 . 2 Extermination . | . . . . Reinforcement 3 | . . . 3 Assault . | . . . . Garrison . | . . . . Intercept . | . . . . Searches Triggered . | . . . . Construction Impeded . | . . . . Haulers Reinforced . | . . . . Active Scanning Responses . | . . . . Cargo Convoy Interrupts . | . . . . Stealth | -11 -10 -10 -9 --------- Run | Yrd Mat Min Mat Distress Signals 6 | . 1 . 5 Communications Jammed . | . . . . Distress Signals . | . . . . Times Spotted 51 | . 13 . 38 Peak Tracking Total 7 | . 3 . 7 Tactical Retreats 3 | . 1 . 2 Traps | -11 -10 -10 -9 ------- Run | Yrd Mat Min Mat Traps Triggered . | . . . . Indirectly . | . . . . Trap Hack Attempts . | . . . . Triggered . | . . . . Disarmed . | . . . . Reprogrammed . | . . . . Reused . | . . . . Traps Extracted . | . . . . Installed . | . . . . Triggered . | . . . . Machines | -11 -10 -10 -9 ---------- Run | Yrd Mat Min Mat Machines Disabled 10 | . 3 . 7 Max in Single Turn 3 | . 2 . 3 Machines Repaired . | . . . . Machines Dismantled . | . . . . Machines Sabotaged . | . . . . Overloaded Fab Kills . | . . . . Hacking | -11 -10 -10 -9 --------- Run | Yrd Mat Min Mat Machines Accessed 8 | . 1 . 7 Terminals 6 | . 1 . 5 Fabricators . | . . . . Repair Stations . | . . . . Recycling Units 1 | . . . 1 Scanalyzers 1 | . . . 1 Garrison Access . | . . . . Total Hacks 21 | . 2 . 19 Successful 7 | . . . 7 Failed 14 | . 2 . 12 Catastrophic 2 | . . . 2 Database Lockouts . | . . . . Manual 18 | . . . 18 Terminals 18 | . 2 . 16 Fabricators . | . . . . Repair Stations . | . . . . Recycling Units 1 | . . . 1 Scanalyzers 2 | . . . 2 Garrison Access . | . . . . Terminal Hacks 1 | . . . 1 Unreport Threat 1 | . . . 1 Fabricator Hacks . | . . . . Repair Station Hacks . | . . . . Recycling Unit Hacks . | . . . . Scanalyzer 2 | . . . 2 Insert Component 1 | . . . 1 Analyze 1 | . . . 1 Garrison Access Hacks . | . . . . Unauthorized Hacks 4 | . . . 4 Terminals 3 | . . . 3 Assimilate 1 | . . . 1 Botnet 2 | . . . 2 Fabricators . | . . . . Repair Stations . | . . . . Recycling Units 1 | . . . 1 Tunnel 1 | . . . 1 Scanalyzers . | . . . . Garrison Access . | . . . . Data Cores Recovered . | . . . . Used . | . . . . Hacking Detections 7 | . 1 . 6 Full Trace Events 3 | . 1 . 2 Feedback Events 1 | . 1 . . Corruption 1 | . 1 . . Feedback Blocked . | . . . . Robot Schematics Acquired . | . . . . Robots Built . | . . . . Authchips . | . . . . Time . | . . . . Total Robot Build Rating . | . . . . Part Schematics Acquired 1 | . . . 1 Parts Built . | . . . . Authchips . | . . . . Time . | . . . . Total Part Build Rating . | . . . . Parts Repaired . | . . . . Time . | . . . . Parts Recycled . | . . . . Recycled Matter . | . . . . Retrieved Matter . | . . . . Retrieved Components . | . . . . Parts Scanalyzed 1 | . . . 1 Part Schematics Acquired 1 | . . . 1 Parts Damaged . | . . . . Bothacking | -11 -10 -10 -9 ------------ Run | Yrd Mat Min Mat Used RIF Installer . | . . . . Robots Hacked . | . . . . Non-combat . | . . . . Combat . | . . . . Robot Hacks Applied . | . . . . Relay Couplers Released . | . . . . Fabnet Peak Effective % . | . . . . Robots Rewired . | . . . . Allies Hacked . | . . . . Hacks Repelled . | . . . . Allies | -11 -10 -10 -9 -------- Run | Yrd Mat Min Mat Total Allies . | . . . . Largest Group . | . . . . Highest-Rated Group . | . . . . Highest-Rated Ally . | . . . . Total Orders . | . . . . Ally Attacks . | . . . . Total Damage . | . . . . Kills . | . . . . Allies Corrupted . | . . . . Allies Melted . | . . . . Intel | -11 -10 -10 -9 ------- Run | Yrd Mat Min Mat Robot Analysis Total . | . . . . Derelict Logs Recovered 2 | . . 2 . Drone Launches . | . . . . Drone Recoveries . | . . . . Exploration | -11 -10 -10 -9 ------------- Run | Yrd Mat Min Mat Turns Passed 4312 | 173 863 185 3091 Spaces Moved 1957 | 108 524 233 1092 Core 56 | 4 3 . 49 Treads 404 | . . . 404 Legs 951 | 104 250 . 597 Wheels 144 | . 144 . . Hover 402 | . 127 233 42 Flight . | . . . . Fastest Speed 50 | 50 50 56 56 Average Speed 134 | 118 122 56 158 Slowest Speed 350 | 120 245 56 350 Overloaded Moves . | . . . . Propulsion Burnouts . | . . . . Robots Hopped . | . . . . Cave-ins Triggered . | . . . . Exploration Rate (%) 35 | 4 43 57 39 Regions Visited 3 Branch Regions 1 Pre-discovered Areas 1 | . . . 1 Known Exits Taken . | . . . . Unknown Exits Taken 3 | 1 1 1 . Scrap Searched 1 | . . 1 . Spaces Dug . | . . . . Terrain Destroyed 62 | 5 39 . 18 Melee . | . . . . Projectile 1 | . . . 1 AOE 61 | 5 39 . 17 Terrain Rammed 2 | . 2 . . Walls Destroyed . | . . . . Machines Disabled . | . . . . Actions | -11 -10 -10 -9 --------- Run | Yrd Mat Min Mat Total 3309 | 129 630 265 2285 Wait 1092 | . 19 16 1057 Move 1954 | 107 523 232 1092 Hop . | . . . . Pick Up 6 | 3 2 . 1 Fast Attach 23 | 7 7 2 7 Attach 3 | . . . 3 Detach 2 | . . . 2 Swap 36 | 1 11 1 23 Drop 12 | . 4 1 7 Fire 178 | 11 62 13 92 Melee . | . . . . Ram 2 | . 2 . . Kick 1 | . . . 1 Crush . | . . . . Escape Stasis . | . . . . Rewire . | . . . . Trap . | . . . . Miscellaneous . | . . . . Route ------- -11/Scrapyard -10/Materials -10/Mines -9/Materials (discovered 4 exits: *Mat x2 / *Min / *Sto) History --------- Turn | Location | Event 8 | -11/Scrapyard | Discovered new exit (range 16) 174 | -11/Scrapyard | Entered Materials 297 | -10/Materials | Discovered new exit (range 12) 306 | -10/Materials | Released all parts (5) 339 | -10/Materials | Build established: Mutant 1037 | -10/Materials | Entered Mines 1042 | -10/Mines | Learned 8 Materials zone layouts 1121 | -10/Mines | Discovered new exit (range 15) 1222 | -10/Mines | Entered Materials 1222 | -9/Materials | Evolved 2 slots: Weapon x2 1223 | -9/Materials | Identified exit to Storage 1224 | -9/Materials | Identified exit to Materials 1224 | -9/Materials | Identified exit to Mines 1586 | -9/Materials | Build established: Scavenger-Skirmisher 2467 | -9/Materials | System corruption reached 10% 2985 | -9/Materials | Discovered exit to Materials (range 9) 4161 | -9/Materials | Build established: Gunner 4246 | -9/Materials | Core integrity fell below 50% 4263 | -9/Materials | Core integrity fell below 20% 4302 | -9/Materials | Lost 6 parts (1p1n4w) 4313 | -9/Materials | Destroyed by Y-45 Defender with Heavy Assault Rifle Last Messages --------------- 04263_ G-34 Mercenary destroyed. 04268_ Adv. Beam Cannon destroyed. 04269_ Overheating: System interference. 04269_ Imp. Terrain Scan Processor temporarily disabled. 04269_ Destroyed Heat Sink. 04271_ Broken Particle Gun destroyed. 04271_ Imp. Assault Rifle destroyed. 04275_ Overheating: Aluminum Leg damaged (-1). 04276_ Y-45 Defender destroyed. 04278_ Acquired 60 matter. 04278_ W-16 Scout sends out distress signal. 04279_ Acquired 13 matter. 04282_ Acquired Lgt. Treads. 04289_ System corrupted: Heat flow error (+105). 04289_ Acquired Imp. Ion Engine. 04290_ K-01 Serf collects debris. 04299_ Acquired 80 matter. 04304_ Acquired 5 matter. 04313_ Critical hit (Burn: +37). Map ----- +----------------------------------------------------+ | ??????????????????# # "" #??#####+####???# | | ??????????????????# < # """ ####### ######## | | ??????????????????# # # ]# +% | | ??????????????????+ + +// # # | | ??????????????????# ###########/ ! + # [ | | ??????????????????# #?????????# # # | | ?????????????????## ##?????########## # | | ?????????????????# ####### #### # | | ?????????????????# # | | ?????????????????# >%= # | | ?????????????????# ! # | | ?????????????????# ####### ###+########### | | #########????# #?######## # ### ######### | | #????# #????????# # #?# " ## ! | | #????# #????????# # #?# ""## % | | #????# #????????# # #?# ""## =% | | #????# #????????# # #?# """## % | | #????# #????????# # #?# "" ## | | #????# #????????# # #?# """## | | #????# #????????# # #?# """## | | #????# #????????###/## #?# """## | | #########????# #?######## %= #?# " ## | | ############## #?# #!#### #?# ######### | | #?# *#[## # #?# #???????? | | ####+######## #?# =+%#### #?#######???????? | | # #?# #?# #@#??# #????????????#### | | + #?# #?# "Y" #!#?## ##??????????##### | | ## #?# #?# """ # #?# ############## | | ?# #?# ########## #?# | | ############?# # # #?# | | #???# # "# #?# | | #?### # T# #?# ############## | | ### # "#=#?#######????????????## | | """ """ + + #=#????????????????????## | | """ """ ### # # #????????????????????## | | """ """ #?# # #=#??#################### | | #?# # #[#??# ########### | | #?# # ???????#Y#?????????? # ! # | | ####/####### ##########k####??????? # # | | = [ ! #??????? # = # | | %* = +??????? # """ """ + | | =% #??????? # """ """%# | | ############/###########+####??????? # """ """ # | | #??# ??????? ?????????? # # | | #??# ""??????? ?????????? # # | | #??# ""S??????? ??????????########+### | | #??# "" ??????? ??????????######## ### | | #??# ???????"" ????????????????## ### | | #??# ???????"" ???????########### ### | | ######??# ????????? ???????########### #### | +----------------------------------------------------+ Best States ------------- Heat Dissipation 28 Energy Generation 12 Energy Capacity 265 Matter Stores 300 Matter Capacity 300 Sight Range 16 Robot Scan Range 14 Terrain Scan Range 16 Terrain Scan Density 110 Armor Coverage 150 Evasion (%) 55 Recoil Reduction 2 Item Schematics ----------------- Ion Engine | -9/Materials | Scanalyzed Robot Schematics ------------------ None Fabricated ------------ Nothing Alien Tech Used ----------------- None Achievements -------------- Brute Force Challenges ------------ None Game ------ Seed PotentialGyrokineticShotgun Manual? 0 Play Time 00:55:36 Cumulative 20.9 hours Start 2025.01.19 @ 07:59:48 End 2025.01.19 @ 09:27:26 Sessions 1 Manual Loads 0 Difficulty Rogue Special Mode None Game No. 27 Rogue 17 Adventurer 10 Explorer 0 Win Type - Total 0 Types 0/0/0/0/0/0/0/0/0 Lore% 10 Gallery% 14 Achievement% 19 Wizard Run 0 Options --------- Layout 2 ASCII 0 Keyboard 1 Movement Vi Keybinds 0 Fullscreen 0 Font 42/SmallcapsGlow Map View 59x48 Zoom Use 0% Tactical HUD 1 Map Filters NONE Filters NONE Steam 1 RUN: adf440e5-fa30-4b04-b42d-473db909799b